fUSD/lending_fUSD_20241107
["ID","MTS","AMOUNT","RATE_DAILY","PERIOD"]
[341526337,1730961070887,-151.0,0.00032,7]
[341526338,1730961070895,-151.0,0.00032,7]
[341526339,1730961070904,-204.729635,0.00032,7]
[341526340,1730961070914,-151.0,0.00032,7]
[341526341,1730961070923,-151.0,0.00032,7]
[341526342,1730961070933,-151.0,0.00032,7]
[341526343,1730961070942,-151.0,0.00032,7]
[341526344,1730961070953,-151.0,0.00032,7]
[341526345,1730961070962,-151.0,0.00032,7]
[341526346,1730961070971,-151.0,0.00032,7]
[341526347,1730961070980,-151.0,0.00032,7]
[341526348,1730961070990,-151.0,0.00032,7]
[341526349,1730961071000,-151.0,0.00032,7]
[341526350,1730961071009,-223.539689,0.00032,7]
[341526351,1730961071019,-169.699809,0.00032,7]
[341526352,1730961071028,-329.501056,0.00032,2]
[341526353,1730961071038,-1291.960214,0.00032,7]
[341526354,1730961071047,-1291.960214,0.00032,7]
[341526355,1730961071056,-1291.960214,0.00032,7]
[341526356,1730961071066,-1291.960214,0.00032,7]
[341526357,1730961071075,-348.545858,0.00032,7]
[341526358,1730961071085,-348.545858,0.00032,7]
[341526359,1730961071095,-348.545858,0.00032,7]
[341526360,1730961071104,-348.545858,0.00032,7]
[341526361,1730961071113,-151.0,0.00032,7]
[341526362,1730961071123,-165.328055,0.00032,7]
[341526363,1730961071132,-151.0,0.00032,7]
[341526364,1730961071141,-151.0,0.00032,7]
[341526365,1730961071151,-151.0,0.00032,7]
[341526366,1730961071160,-151.0,0.00032,7]
[341526367,1730961071169,-151.0,0.00032,7]
[341526368,1730961071178,-151.239118,0.00032,7]
[341526369,1730961071187,-151.239118,0.00032,7]
[341526370,1730961071196,-151.0,0.00032,7]
[341526371,1730961071205,-151.0,0.00032,7]
[341526372,1730961071215,-163.288348,0.00032,7]
[341526373,1730961071224,-714.414222,0.00032,7]
[341526374,1730961071233,-163.288348,0.00032,7]
[341526375,1730961071243,-280.26567533,0.00032,7]
[341526376,1730961071252,-151.0,0.00032,7]
[341526377,1730961071262,-298.776736,0.00032,7]
[341526378,1730961071274,-724.312942,0.00032,7]
[341526379,1730961071284,-724.312951,0.00032,7]
[341526380,1730961071294,-154.034037,0.00032,7]
[341526381,1730961071303,-154.03404,0.00032,7]
[341526382,1730961071313,-166.462487,0.00032,7]
[341526383,1730961071322,-166.46249,0.00032,7]
[341526384,1730961071335,-151.0,0.00032,7]
[341526385,1730961071345,-151.0,0.00032,7]
[341526386,1730961071355,-1000.0,0.00032,12]
[341526387,1730961071366,-241.33841465,0.0003202,2]
[341526388,1730961071376,-1843.06,0.00032045,4]
[341526389,1730961071387,-1536.44,0.00032045,4]
[341526390,1730961071396,-778.4,0.00032045,4]
[341526391,1730961071408,-2764.11,0.00032045,4]
[341526392,1730961071418,-734.27,0.00032045,4]
[341526393,1730961071428,-4657.75,0.00032045,4]
[341526394,1730961071437,-500.0,0.00032045,4]
[341526395,1730961071446,-500.0,0.00032045,4]
[341526396,1730961071456,-2300.46,0.00032045,4]
[341526397,1730961071465,-500.0,0.00032045,4]
[341526398,1730961071474,-759.92,0.00032045,4]
[341526399,1730961071484,-588.8,0.00032045,4]
[341526400,1730961071494,-500.0,0.00032045,4]
[341526401,1730961071503,-598.5,0.00032045,4]
[341526402,1730961071512,-500.0,0.00032045,4]
[341526403,1730961071524,-889.07,0.00032045,4]
[341526404,1730961071533,-500.0,0.00032045,4]
[341526405,1730961071542,-500.0,0.00032045,4]
[341526406,1730961071551,-1954.93,0.00032045,4]
[341526407,1730961071560,-500.0,0.00032045,4]
[341526408,1730961071571,-2000.0,0.00032055,2]
[341526409,1730961071580,-234.05005941,0.00032073,4]
[341526410,1730961071589,-500.0,0.00032073,4]
[341526411,1730961071598,-1798.66,0.00032073,4]
[341526412,1730961071607,-616.56,0.00032073,4]
[341526413,1730961071616,-1736.99,0.00032073,4]
[341526414,1730961071626,-1565.03,0.00032073,4]
[341526415,1730961071636,-500.0,0.00032073,4]
[341526416,1730961071646,-596.19,0.00032073,4]
[341526417,1730961071656,-1179.75,0.00032073,4]
[341526418,1730961071666,-500.0,0.00032073,4]
[341526419,1730961071676,-1201.3,0.00032073,4]
[341526420,1730961071686,-1267.37,0.00032073,4]
[341526421,1730961071696,-500.0,0.00032073,4]
[341526422,1730961071705,-765.72,0.00032073,4]
[341526423,1730961071714,-1186.51,0.00032073,4]
[341526424,1730961071723,-581.31,0.00032073,4]
[341526425,1730961071732,-500.0,0.00032073,4]
[341526426,1730961071742,-1924.65,0.00032073,4]
[341526427,1730961071752,-2038.78,0.00032073,4]
[341526428,1730961071761,-500.0,0.00032073,4]
[341526429,1730961071772,-2484.08,0.00032073,4]
[341526430,1730961071781,-500.0,0.00032073,4]
[341526431,1730961071790,-2014.76,0.00032073,4]
[341526432,1730961071800,-1107.13,0.00032073,4]
[341526433,1730961071809,-500.0,0.00032073,4]
[341526434,1730961071818,-500.0,0.00032073,4]
[341526435,1730961071828,-500.0,0.00032073,4]
[341526436,1730961071837,-523.25,0.00032073,4]
[341526437,1730961071846,-500.0,0.00032073,4]
[341526438,1730961071856,-500.0,0.00032073,4]
[341526439,1730961071865,-812.78,0.00032073,4]
[341526440,1730961071873,-784.79,0.00032073,4]
[341526441,1730961071882,-1284.84,0.00032073,4]
[341526442,1730961071890,-1108.97,0.00032073,4]
[341526443,1730961071900,-998.86,0.00032073,4]
[341526444,1730961071909,-730.27,0.00032073,4]
[341526445,1730961071918,-1614.42,0.00032073,4]
[341526446,1730961071928,-163.288348,0.00032073,7]
[341526447,1730961071938,-714.414232,0.00032073,7]
[341526448,1730961071947,-163.288357,0.00032073,7]
[341526449,1730961071956,-151.0,0.00032073,7]
[341526450,1730961071966,-152.0,0.00032105,5]
[341526451,1730961071975,-151.239118,0.00032118,7]
[341526452,1730961071984,-151.239118,0.00032118,7]
[341526453,1730961071993,-151.0,0.00032118,7]
[341526454,1730961072002,-151.0,0.00032118,7]
[341526455,1730961072011,-200.0,0.00032118,2]
[341526456,1730961072023,-535.84,0.00032145,4]
[341526457,1730961072032,-1652.58,0.00032145,4]
[341526458,1730961072042,-3222.5,0.00032145,4]
[341526459,1730961072051,-761.9,0.00032145,4]
[341526460,1730961072061,-1280.16,0.00032145,4]
[341526461,1730961072070,-3972.2,0.00032145,4]
[341526462,1730961072079,-1871.91,0.00032145,4]
[341526463,1730961072089,-500.0,0.00032145,4]
[341526464,1730961072098,-1253.68,0.00032145,4]
[341526465,1730961072108,-623.53,0.00032145,4]
[341526466,1730961072117,-834.19,0.00032145,4]
[341526467,1730961072127,-1497.88,0.00032145,4]
[341526468,1730961072137,-890.29,0.00032145,4]
[341526469,1730961072147,-617.18496356,0.00032145,4]
[341526470,1730961072156,-686.57,0.00032146,4]
[341526471,1730961072166,-490.483093,0.00032146,4]
[341526472,1730961072176,-157.950212,0.00032146,4]
[341526473,1730961072185,-716.43,0.00032146,4]
[341526474,1730961072195,-744.89,0.00032146,4]
[341526475,1730961072204,-12992.06,0.00032146,4]
[341526476,1730961072213,-953.15,0.00032146,4]
[341526477,1730961072223,-500.0,0.00032146,4]
[341526478,1730961072233,-305.034082,0.00032146,4]
[341526479,1730961072241,-2501.71,0.00032146,4]
[341526480,1730961072251,-1992.28,0.00032146,4]
[341526481,1730961072260,-9233.39,0.00032146,4]
[341526482,1730961072272,-1256.1,0.00032146,4]
[341526483,1730961072281,-1525.28,0.00032146,4]
[341526484,1730961072290,-3369.6,0.00032146,4]
[341526485,1730961072300,-1354.52,0.00032146,4]
[341526486,1730961072309,-607.76,0.00032146,4]
[341526487,1730961072318,-684.49,0.00032146,4]
[341526488,1730961072329,-2296.07,0.00032146,4]
[341526489,1730961072339,-1681.89,0.00032146,4]
[341526490,1730961072349,-500.0,0.00032146,4]
[341526491,1730961072358,-1507.57,0.00032146,4]
[341526492,1730961072368,-6403.43,0.00032146,4]
[341526493,1730961072378,-2353.07,0.00032146,4]
[341526494,1730961072388,-917.29,0.00032146,4]
[341526495,1730961072399,-1421.63,0.00032146,4]
[341526496,1730961072409,-829.37,0.00032146,4]
[341526497,1730961072420,-929.12,0.00032146,4]
[341526498,1730961072430,-1552.98,0.00032146,4]
[341526499,1730961072440,-1793.26,0.00032146,4]
[341526500,1730961072449,-3109.19,0.00032146,4]
[341526501,1730961072459,-500.0,0.00032147,4]
[341526502,1730961072469,-500.0,0.00032147,4]
[341526503,1730961072479,-1062.64,0.00032147,4]
[341526504,1730961072488,-500.0,0.00032147,4]
[341526505,1730961072497,-500.0,0.00032147,4]
[341526506,1730961072506,-500.0,0.00032147,4]
[341526507,1730961072516,-500.0,0.00032147,4]
[341526508,1730961072529,-500.0,0.00032147,4]
[341526509,1730961072540,-500.0,0.00032147,4]
[341526510,1730961072550,-500.0,0.00032147,4]
[341526511,1730961072560,-789.68,0.00032147,4]
[341526512,1730961072571,-500.0,0.00032147,4]
[341526513,1730961072580,-303.76716128,0.00032147,4]
[341526514,1730961072590,-873.49,0.00032147,4]
[341526515,1730961072599,-778.93,0.00032147,4]
[341526516,1730961072609,-638.63,0.00032147,4]
[341526517,1730961072619,-754.67,0.00032147,4]
[341526518,1730961072629,-1022.26,0.00032147,4]
[341526519,1730961072639,-500.0,0.00032147,4]
[341526520,1730961072650,-500.0,0.00032147,4]
[341526521,1730961072659,-500.0,0.00032147,4]
[341526522,1730961072669,-783.28,0.00032147,4]
[341526523,1730961072685,-500.0,0.00032147,4]
[341526524,1730961072694,-500.0,0.00032147,4]
[341526525,1730961072704,-500.0,0.00032147,4]
[341526526,1730961072714,-785.25,0.00032147,4]
[341526527,1730961072724,-539.28972224,0.00032147,4]
[341526528,1730961072733,-1035.01,0.00032147,4]
[341526529,1730961072743,-789.56,0.00032147,4]
[341526530,1730961072752,-500.0,0.00032147,4]
[341526531,1730961072762,-500.0,0.00032147,4]
[341526532,1730961072774,-997.76,0.00032147,4]
[341526533,1730961072784,-1292.97,0.00032147,4]
[341526534,1730961072794,-664.75,0.00032147,4]
[341526535,1730961072803,-1262.28,0.00032147,4]
[341526536,1730961072814,-500.0,0.00032147,4]
[341526537,1730961072823,-500.0,0.00032147,4]
[341526538,1730961072833,-500.0,0.00032147,4]
[341526539,1730961072843,-500.0,0.00032147,4]
[341526540,1730961072853,-500.0,0.00032147,4]
[341526541,1730961072864,-500.0,0.00032147,4]
[341526542,1730961072874,-1793.51,0.00032147,4]
[341526543,1730961072884,-500.0,0.00032147,4]
[341526544,1730961072894,-575.61,0.00032147,4]
[341526545,1730961072904,-157.33363006,0.00032147,4]
[341526546,1730961072913,-500.0,0.00032147,4]
[341526547,1730961072923,-500.0,0.00032147,4]
[341526548,1730961072933,-506.28760651,0.00032147,4]
[341526549,1730961072943,-928.68,0.00032147,4]
[341526550,1730961072952,-801.38,0.00032147,4]
[341526551,1730961072962,-500.0,0.00032147,4]
[341526552,1730961072971,-558.8857442,0.00032147,4]
[341526553,1730961072982,-500.0,0.00032147,4]
[341526554,1730961072996,-986.36,0.00032147,4]
[341526555,1730961073005,-536.83367733,0.00032147,4]
[341526556,1730961073015,-500.0,0.00032147,4]
[341526557,1730961073027,-500.0,0.00032147,4]
[341526558,1730961073037,-517.17881846,0.00032147,4]
[341526559,1730961073047,-647.28,0.00032147,4]
[341526560,1730961073057,-636.24,0.00032147,4]
[341526561,1730961073067,-500.0,0.00032147,4]
[341526562,1730961073076,-500.0,0.00032147,4]
[341526563,1730961073085,-151.0,0.00032147,7]
[341526564,1730961073095,-720.15,0.00032147,4]
[341526565,1730961073104,-500.0,0.00032147,4]
[341526566,1730961073114,-151.0,0.00032147,7]
[341526567,1730961073123,-500.0,0.00032147,4]
[341526568,1730961073133,-511.47,0.00032147,4]
[341526569,1730961073143,-500.0,0.00032147,4]
[341526570,1730961073152,-500.0,0.00032147,4]
[341526571,1730961073162,-500.0,0.00032147,4]
[341526572,1730961073172,-500.0,0.00032147,4]
[341526573,1730961073181,-500.0,0.00032147,4]
[341526574,1730961073191,-500.0,0.00032147,4]
[341526575,1730961073201,-500.0,0.00032147,4]
[341526576,1730961073210,-502.76361582,0.00032147,4]
[341526577,1730961073219,-865.59,0.00032147,4]
[341526578,1730961073228,-525.45290233,0.00032147,4]
[341526579,1730961073238,-664.99,0.00032147,4]
[341526580,1730961073249,-577.18347185,0.00032147,4]
[341526581,1730961073258,-500.0,0.00032147,4]
[341526582,1730961073269,-500.0,0.00032147,4]
[341526583,1730961073278,-151.0,0.00032147,7]
[341526584,1730961073287,-1144.25,0.00032147,4]
[341526585,1730961073296,-500.0,0.00032147,4]
[341526586,1730961073306,-500.0,0.00032147,4]
[341526587,1730961073316,-151.239118,0.00032147,7]
[341526588,1730961073326,-500.0,0.00032147,4]
[341526589,1730961073336,-500.0,0.00032147,4]
[341526590,1730961073346,-512.80724285,0.00032147,4]
[341526591,1730961073355,-514.93674536,0.00032147,4]
[341526592,1730961073365,-502.7938479,0.00032147,4]
[341526593,1730961073376,-151.239118,0.00032147,7]
[341526594,1730961073385,-500.0,0.00032147,4]
[341526595,1730961073395,-500.0,0.00032147,4]
[341526596,1730961073405,-500.0,0.00032147,4]
[341526597,1730961073415,-500.0,0.00032147,4]
[341526598,1730961073424,-500.0,0.00032147,4]
[341526599,1730961073434,-500.0,0.00032147,4]
[341526600,1730961073443,-619.62972438,0.00032147,4]
[341526601,1730961073453,-500.0,0.00032147,4]
[341526602,1730961073462,-500.0,0.00032147,4]
[341526603,1730961073473,-500.0,0.00032147,4]
[341526604,1730961073482,-500.0,0.00032147,4]
[341526605,1730961073492,-500.0,0.00032147,4]
[341526606,1730961073502,-503.93538517,0.00032147,4]
[341526607,1730961073512,-430.1714178,0.00032147,4]
[341526608,1730961073527,-500.0,0.00032147,4]
[341526609,1730961073537,-658.49,0.00032147,4]
[341526610,1730961073547,-500.0,0.00032147,4]
[341526611,1730961073556,-500.0,0.00032147,4]
[341526612,1730961073566,-500.0,0.00032147,4]
[341526613,1730961073577,-500.0,0.00032147,4]
[341526614,1730961073587,-523.68,0.00032147,4]
[341526615,1730961073597,-583.61534645,0.00032147,4]
[341526616,1730961073609,-500.0,0.00032147,4]
[341526617,1730961073620,-500.0,0.00032147,4]
[341526618,1730961073632,-1072.83,0.00032147,4]
[341526619,1730961073643,-151.0,0.00032147,7]
[341526620,1730961073652,-195.61330093,0.00032147,4]
[341526621,1730961073662,-500.0,0.00032147,4]
[341526622,1730961073673,-676.42,0.00032147,4]
[341526623,1730961073683,-500.0,0.00032147,4]
[341526624,1730961073694,-151.0,0.00032147,7]
[341526625,1730961073704,-500.0,0.00032147,4]
[341526626,1730961073714,-534.31427455,0.00032147,4]
[341526627,1730961073725,-1023.87,0.00032147,4]
[341526628,1730961073735,-504.42,0.00032147,4]
[341526629,1730961073746,-500.0,0.00032147,4]
[341526630,1730961073755,-500.18,0.00032147,4]
[341526631,1730961073765,-503.53983453,0.00032147,4]
[341526632,1730961073781,-500.0,0.00032147,4]
[341526633,1730961073791,-1499.29,0.00032147,4]
[341526634,1730961073801,-500.0,0.00032147,4]
[341526635,1730961073811,-500.0,0.00032147,4]
[341526636,1730961073821,-1699.2,0.00032147,4]
[341526637,1730961073831,-1035.15,0.00032147,4]
[341526638,1730961073840,-500.0,0.00032147,4]
[341526639,1730961073850,-500.0,0.00032147,4]
[341526640,1730961073861,-500.0,0.00032147,4]
[341526641,1730961073871,-500.0,0.00032147,4]
[341526642,1730961073881,-806.26,0.00032147,4]
[341526643,1730961073890,-527.65832519,0.00032147,4]
[341526644,1730961073900,-1436.73,0.00032147,4]
[341526645,1730961073910,-500.0,0.00032147,4]
[341526646,1730961073920,-509.34026823,0.00032147,4]
[341526647,1730961073930,-942.73,0.00032147,4]
[341526648,1730961073940,-500.0,0.00032147,4]
[341526649,1730961073950,-500.0,0.00032147,4]
[341526650,1730961073960,-500.0,0.00032147,4]
[341526651,1730961073970,-500.0,0.00032147,4]
[341526652,1730961073979,-500.0,0.00032147,4]
[341526653,1730961073989,-1648.38,0.00032147,4]
[341526654,1730961073999,-500.0,0.00032147,4]
[341526655,1730961074008,-500.0,0.00032147,4]
[341526656,1730961074018,-500.0,0.00032147,4]
[341526657,1730961074031,-500.0,0.00032147,4]
[341526658,1730961074042,-956.17,0.00032147,4]
[341526659,1730961074052,-500.0,0.00032147,4]
[341526660,1730961074062,-600.96,0.00032147,4]
[341526661,1730961074072,-500.0,0.00032147,4]
[341526662,1730961074083,-500.0,0.00032147,4]
[341526663,1730961074093,-500.0,0.00032147,4]
[341526664,1730961074102,-500.0,0.00032147,4]
[341526665,1730961074112,-500.0,0.00032147,4]
[341526666,1730961074122,-502.18361674,0.00032147,4]
[341526667,1730961074132,-643.67,0.00032147,4]
[341526668,1730961074141,-500.0,0.00032147,4]
[341526669,1730961074151,-582.3,0.00032147,4]
[341526670,1730961074160,-500.0,0.00032147,4]
[341526671,1730961074170,-500.0,0.00032147,4]
[341526672,1730961074180,-212.25145349,0.00032147,4]
[341526673,1730961074190,-694.57,0.00032147,4]
[341526674,1730961074200,-500.0,0.00032147,4]
[341526675,1730961074210,-1084.49,0.00032147,4]
[341526676,1730961074219,-506.15404778,0.00032147,4]
[341526677,1730961074229,-541.77942901,0.00032147,4]
[341526678,1730961074240,-500.0,0.00032147,4]
[341526679,1730961074249,-1194.39,0.00032147,4]
[341526680,1730961074260,-564.45,0.00032147,4]
[341526681,1730961074273,-1022.68,0.00032147,4]
[341526682,1730961074283,-1399.22,0.00032147,4]
[341526683,1730961074293,-568.29,0.00032147,4]
[341526684,1730961074303,-500.0,0.00032147,4]
[341526685,1730961074313,-500.0,0.00032147,4]
[341526686,1730961074324,-554.99396395,0.00032147,4]
[341526687,1730961074335,-176.45775435,0.00032147,4]
[341526688,1730961074345,-500.0,0.00032147,4]
[341526689,1730961074355,-500.0,0.00032147,4]
[341526690,1730961074366,-500.0,0.00032147,4]
[341526691,1730961074375,-500.0,0.00032147,4]
[341526692,1730961074385,-548.89,0.00032147,4]
[341526693,1730961074395,-500.0,0.00032147,4]
[341526694,1730961074407,-500.0,0.00032147,4]
[341526695,1730961074417,-500.0,0.00032147,4]
[341526696,1730961074428,-769.97,0.00032147,4]
[341526697,1730961074440,-500.0,0.00032147,4]
[341526698,1730961074450,-500.0,0.00032147,4]
[341526699,1730961074459,-500.0,0.00032147,4]
[341526700,1730961074468,-506.89911934,0.00032147,4]
[341526701,1730961074478,-1057.44,0.00032147,4]
[341526702,1730961074488,-822.77,0.00032147,4]
[341526703,1730961074498,-515.85,0.00032147,4]
[341526704,1730961074508,-508.47009149,0.00032147,4]
[341526705,1730961074518,-500.0,0.00032147,4]
[341526706,1730961074531,-500.0,0.00032147,4]
[341526707,1730961074541,-633.44,0.00032147,4]
[341526708,1730961074551,-754.45,0.00032147,4]
[341526709,1730961074561,-500.0,0.00032147,4]
[341526710,1730961074570,-500.0,0.00032147,4]
[341526711,1730961074580,-1047.0,0.00032147,4]
[341526712,1730961074590,-500.0,0.00032147,4]
[341526713,1730961074600,-785.91,0.00032147,4]
[341526714,1730961074610,-500.0,0.00032147,4]
[341526715,1730961074621,-1070.66,0.00032147,4]
[341526716,1730961074632,-500.0,0.00032147,4]
[341526717,1730961074642,-500.0,0.00032147,4]
[341526718,1730961074652,-556.01,0.00032147,4]
[341526719,1730961074663,-1739.43,0.00032147,4]
[341526720,1730961074673,-502.94561177,0.00032147,4]
[341526721,1730961074683,-500.0,0.00032147,4]
[341526722,1730961075005,-500.0,0.00032147,4]
[341526723,1730961075016,-885.67,0.00032147,4]
[341526724,1730961075029,-500.0,0.00032147,4]
[341526725,1730961075038,-1049.05,0.00032147,4]
[341526726,1730961075048,-500.0,0.00032147,4]
[341526727,1730961075057,-499.9998091,0.00032147,4]
[341526728,1730961075068,-500.0,0.00032147,4]
[341526729,1730961075077,-876.89,0.00032147,4]
[341526730,1730961075089,-500.0,0.00032147,4]
[341526731,1730961075098,-2272.02,0.00032147,4]
[341526732,1730961075108,-599.49,0.00032147,4]
[341526733,1730961075118,-500.0,0.00032147,4]
[341526734,1730961075127,-500.0,0.00032147,4]
[341526735,1730961075137,-695.37,0.00032147,4]
[341526736,1730961075146,-732.38,0.00032147,4]
[341526737,1730961075156,-500.0,0.00032147,4]
[341526738,1730961075165,-701.48,0.00032147,4]
[341526739,1730961075175,-500.0,0.00032147,4]
[341526740,1730961075185,-500.0,0.00032147,4]
[341526741,1730961075195,-837.83,0.00032147,4]
[341526742,1730961075203,-537.88,0.00032147,4]
[341526743,1730961075212,-802.13,0.00032147,4]
[341526744,1730961075222,-500.0,0.00032147,4]
[341526745,1730961075233,-500.0,0.00032147,4]
[341526746,1730961075242,-500.0,0.00032147,4]
[341526747,1730961075253,-500.0,0.00032147,4]
[341526748,1730961075264,-500.0,0.00032147,4]
[341526749,1730961075276,-6029.66,0.00032147,4]
[341526750,1730961075286,-500.0,0.00032147,4]
[341526751,1730961075295,-500.0,0.00032147,4]
[341526752,1730961075305,-500.0,0.00032147,4]
[341526753,1730961075314,-500.0,0.00032147,4]
[341526754,1730961075325,-613.07,0.00032147,4]
[341526755,1730961075335,-827.06,0.00032147,4]
[341526756,1730961075345,-500.0,0.00032147,4]
[341526757,1730961075355,-602.82,0.00032147,4]
[341526758,1730961075366,-500.0,0.00032147,4]
[341526759,1730961075375,-256.37160456,0.00032147,4]
[341526760,1730961075384,-3100.54,0.00032147,4]
[341526761,1730961075394,-551.3,0.00032147,4]
[341526762,1730961075405,-1622.88,0.00032147,4]
[341526763,1730961075415,-500.0,0.00032147,4]
[341526764,1730961075425,-912.13,0.00032147,4]
[341526765,1730961075434,-1161.01,0.00032147,4]
[341526766,1730961075444,-607.93645139,0.00032147,4]
[341526767,1730961075454,-500.0,0.00032147,4]
[341526768,1730961075464,-500.0,0.00032147,4]
[341526769,1730961075473,-1653.17,0.00032147,4]
[341526770,1730961075483,-9653.6,0.00032147,4]
[341526771,1730961075493,-1878.44,0.00032147,4]
[341526772,1730961075503,-500.0,0.00032147,4]
[341526773,1730961075512,-1264.12,0.00032147,4]
[341526774,1730961075525,-500.0,0.00032147,4]
[341526775,1730961075535,-500.0,0.00032147,4]
[341526776,1730961075544,-500.0,0.00032147,4]
[341526777,1730961075554,-500.0,0.00032147,4]
[341526778,1730961075564,-500.0,0.00032147,4]
[341526779,1730961075574,-628.6,0.00032147,4]
[341526780,1730961075584,-1663.58,0.00032147,4]
[341526781,1730961075595,-506.86,0.00032147,4]
[341526782,1730961075605,-500.0,0.00032147,4]
[341526783,1730961075615,-1375.47,0.00032147,4]
[341526784,1730961075625,-500.0,0.00032147,4]
[341526785,1730961075635,-500.0,0.00032147,4]
[341526786,1730961075645,-937.21,0.00032147,4]
[341526787,1730961075655,-3401.2,0.00032147,4]
[341526788,1730961075664,-1086.05,0.00032147,4]
[341526789,1730961075674,-930.04,0.00032147,4]
[341526790,1730961075684,-500.0,0.00032147,4]
[341526791,1730961075694,-500.0,0.00032147,4]
[341526792,1730961075703,-500.0,0.00032147,4]
[341526793,1730961075713,-500.0,0.00032147,4]
[341526794,1730961075723,-500.0,0.00032147,4]
[341526795,1730961075732,-1382.77,0.00032147,4]
[341526796,1730961075741,-500.0,0.00032147,4]
[341526797,1730961075751,-1166.68,0.00032147,4]
[341526798,1730961075761,-500.0,0.00032147,4]
[341526799,1730961075771,-500.0,0.00032147,4]
[341526800,1730961075781,-2191.16,0.00032147,4]
[341526801,1730961075790,-500.0,0.00032147,4]
[341526802,1730961075800,-1013.73,0.00032147,4]
[341526803,1730961075809,-500.0,0.00032147,4]
[341526804,1730961075819,-2809.55,0.00032147,4]
[341526805,1730961075829,-517.36,0.00032147,4]
[341526806,1730961075838,-1007.47,0.00032147,4]
[341526807,1730961075849,-500.0,0.00032147,4]
[341526808,1730961075859,-500.0,0.00032147,4]
[341526809,1730961075869,-2170.78,0.00032147,4]
[341526810,1730961075878,-4439.07,0.00032147,4]
[341526811,1730961075888,-1969.43,0.00032147,4]
[341526812,1730961075899,-500.0,0.00032147,4]
[341526813,1730961075909,-500.0,0.00032147,4]
[341526814,1730961075918,-500.0,0.00032147,4]
[341526815,1730961075928,-500.0,0.00032147,4]
[341526816,1730961075937,-526.52247656,0.00032147,4]
[341526817,1730961075946,-500.0,0.00032147,4]
[341526818,1730961075956,-909.27,0.00032147,4]
[341526819,1730961075966,-582.09,0.00032147,4]
[341526820,1730961075976,-500.0,0.00032147,4]
[341526821,1730961075985,-697.39,0.00032147,4]
[341526822,1730961075995,-500.0,0.00032147,4]
[341526823,1730961076005,-1515.53,0.00032147,4]
[341526824,1730961076014,-500.0,0.00032147,4]
[341526825,1730961076026,-500.0,0.00032147,4]
[341526826,1730961076035,-500.0,0.00032147,4]
[341526827,1730961076045,-500.0,0.00032147,4]
[341526828,1730961076055,-512.81,0.00032147,4]
[341526829,1730961076065,-1099.94,0.00032147,4]
[341526830,1730961076075,-500.0,0.00032147,4]
[341526831,1730961076085,-2033.92,0.00032147,4]
[341526832,1730961076095,-500.0,0.00032147,4]
[341526833,1730961076104,-500.0,0.00032147,4]
[341526834,1730961076114,-517.5058342,0.00032147,4]
[341526835,1730961076124,-500.0,0.00032147,4]
[341526836,1730961076134,-500.0,0.00032147,4]